bitfinex/quotes_ETHUSD_20251130
["timestamp","ask_amount","ask_price","bid_price","bid_amount"]
[1764508537212,0.4643,3035.8,3035.7,0.69605476]
[1764508537434,0.945,3035.8,3035.1,0.87006845]
[1764508537631,0.945,3035.8,3035.0,0.87006845]
[1764508537632,0.4792,3035.2,3035.0,0.87006845]
[1764508537831,0.4792,3035.2,3035.0,3.29485744]
[1764508538033,0.1923,3035.9,3035.0,3.29485744]
[1764508538034,0.7984,3035.1,3035.0,4.02045155]
[1764508538221,0.7984,3035.1,3035.0,0.72559411]
[1764508538422,0.7984,3035.1,3034.8,0.72559411]
[1764508538623,0.1923,3035.9,3034.6,0.87006845]
[1764508538624,0.6701,3034.9,3034.6,0.87006845]
[1764508538822,0.6701,3034.9,3034.4,0.87006845]
[1764508538823,0.4764,3034.7,3034.4,0.87006845]
[1764508539022,0.3369,3034.5,3034.3,0.72559411]
[1764508539241,0.475,3034.4,3034.3,0.72559411]
[1764508539466,0.475,3034.4,3034.0,0.87006845]
[1764508539759,0.1923,3034.9,3033.9,3.76238754]
[1764508539760,0.4807,3034.0,3033.9,3.76238754]
[1764508540133,0.945,3034.0,3033.9,4.48798165]
[1764508542128,0.4643,3034.4,3033.9,7.78406919]
[1764508543422,0.4807,3034.0,3033.9,4.48798165]
[1764508543736,0.4807,3034.0,3033.9,1.19189411]
[1764508543929,0.945,3034.0,3033.9,1.19189411]
[1764508544363,0.945,3034.0,3033.9,4.48798165]
[1764508544529,0.945,3034.0,3033.9,1.19189411]
[1764508544740,0.945,3034.0,3033.9,0.4663]
[1764508544929,0.4807,3034.0,3033.8,3.29618562]
[1764508545257,0.4643,3034.5,3033.9,0.99029674]
[1764508545446,0.4643,3034.5,3034.0,3.2959789]
[1764508545961,0.4643,3034.5,3034.0,6.5919578]
[1764508546262,0.4643,3034.5,3034.1,0.4643]
[1764508546637,0.4807,3034.2,3034.1,0.4643]
[1764508547247,0.945,3034.2,3034.1,0.4643]
[1764508548158,0.945,3034.2,3033.9,0.001]
[1764508548365,0.4643,3034.1,3034.0,3.2959638]
[1764508548820,0.945,3034.1,3034.0,3.2959638]
[1764508549539,0.945,3034.1,3034.0,3.98137776]
[1764508550137,0.945,3034.1,3034.0,3.98139286]
[1764508550756,0.945,3034.1,3034.0,0.68541396]
[1764508551972,0.945,3034.1,3034.0,3.98139286]
[1764508552346,0.4807,3034.1,3034.0,3.98139286]
[1764508552663,0.9507,3034.1,3034.0,3.98139286]
[1764508555388,0.9507,3034.1,3034.0,4.85146131]
[1764508555886,0.9507,3034.1,3034.0,1.55548241]
[1764508556057,0.9507,3034.1,3034.0,4.85146131]
[1764508556258,0.9507,3034.1,3034.0,3.98139286]
[1764508556460,0.9507,3034.1,3034.0,0.68541396]
[1764508556967,0.9507,3034.1,3034.0,1.54396327]
[1764508556968,1.0507,3034.1,3034.0,1.54396327]
[1764508557191,1.0507,3034.1,3034.0,0.68541396]
[1764508557483,4.78121051,3034.1,3034.0,0.68541396]
[1764508558041,0.1,3034.0,3033.9,0.001]
[1764508558397,1.1088,3034.0,3033.9,0.68864297]
[1764508559575,4.4047789,3034.0,3033.9,0.68864297]
[1764508560071,1.514304,3034.0,3033.9,0.68864297]
[1764508560272,1.30369442,3034.0,3033.9,0.68864297]
[1764508560678,4.59967332,3034.0,3033.9,0.68864297]
[1764508560981,1.30369442,3034.0,3033.9,0.68864297]
[1764508561273,4.59967332,3034.0,3033.9,0.68864297]
[1764508562044,1.30369442,3034.0,3033.9,0.68864297]
[1764508562978,1.30369442,3034.0,3033.9,1.55493735]
[1764508563372,1.30369442,3034.0,3033.9,0.68864297]
[1764508563554,1.30369442,3034.0,3033.5,0.001]
[1764508563555,1.050904,3033.9,3033.6,2.741e-05]
[1764508563748,0.4577,3033.6,3033.5,0.87027557]
[1764508563953,0.4577,3033.6,3033.5,0.001]
[1764508563954,0.963204,3033.6,3033.5,0.001]
[1764508564149,0.963204,3033.6,3033.2,0.001]
[1764508564150,0.405504,3033.5,3033.2,0.001]
[1764508564364,0.4587,3033.3,3033.2,0.87027557]
[1764508564760,0.9287,3033.3,3033.2,0.87027557]
[1764508564964,0.9287,3033.3,3033.2,0.001]
[1764508565555,4.66917616,3033.3,3033.2,0.001]
[1764508565967,1.37243664,3033.3,3033.2,0.001]
[1764508566279,1.27243664,3033.3,3033.2,0.001]
[1764508566455,0.8287,3033.3,3033.2,0.001]
[1764508567059,0.9287,3033.3,3033.2,0.001]
[1764508568276,4.22543952,3033.3,3033.2,0.001]
[1764508568451,0.9287,3033.3,3033.2,0.001]
[1764508570970,4.22543952,3033.3,3033.2,0.001]
[1764508571174,1.27244395,3033.3,3033.2,0.001]
[1764508571373,0.8287,3033.3,3033.2,0.001]
[1764508571686,0.9287,3033.3,3033.2,0.001]
[1764508572262,4.22543952,3033.3,3033.2,0.001]
[1764508572587,0.9287,3033.3,3033.2,0.001]
[1764508572759,4.22543952,3033.3,3033.2,0.001]
[1764508572958,4.9988359,3033.3,3033.2,0.001]
[1764508578209,5.4043399,3033.3,3033.2,0.001]
[1764508578563,6.39524176,3033.3,3033.2,0.001]
[1764508580759,3.09850224,3033.3,3033.2,0.001]
[1764508580964,5.62184538,3033.3,3033.2,0.001]
[1764508582000,4.63094352,3033.3,3033.2,0.001]
[1764508587789,5.35653763,3033.3,3033.2,0.001]
[1764508592498,5.25653763,3033.3,3033.2,0.001]
[1764508592806,5.35653763,3033.3,3033.2,0.001]
[1764508593000,6.24325459,3033.3,3033.2,0.001]
[1764508600279,5.84205059,3033.3,3033.2,0.001]
[1764508601104,6.24755459,3033.3,3033.2,0.001]
[1764508603816,6.14755459,3033.3,3033.2,0.001]
[1764508604121,6.24755459,3033.3,3033.2,0.001]
[1764508612610,0.1,3033.3,3033.2,0.479]
[1764508612834,0.1,3033.3,3033.2,0.9341]
[1764508613029,0.311,3033.3,3033.2,0.9341]
[1764508615255,0.211,3033.3,3033.2,0.9341]
[1764508616255,0.211,3033.3,3033.2,4.23094821]
[1764508616629,0.211,3033.3,3033.2,4.62860641]
[1764508618316,0.211,3033.3,3033.2,1.3317582]
[1764508618539,0.211,3033.3,3033.2,4.23094821]
[1764508620437,0.211,3033.3,3033.2,4.95654232]
[1764508621361,0.211,3033.3,3033.2,5.831]
[1764508621531,0.002,3033.5,3033.3,0.72559411]
[1764508621736,0.002,3033.5,3033.4,0.478]
[1764508621936,0.002,3033.5,3033.4,1.84588482]
[1764508622148,0.002,3033.5,3033.4,5.14251566]
[1764508623254,0.002,3033.5,3033.4,4.22973084]
[1764508625743,0.002,3033.5,3033.4,4.22973084]
[1764508627456,0.002,3033.5,3033.4,0.9331]
[1764508627870,0.002,3033.5,3033.4,4.22973084]
[1764508632471,0.002,3033.5,3033.4,4.26269714]
[1764508632776,0.002,3033.5,3033.4,4.22973084]
[1764508633583,0.002,3033.5,3033.4,3.77563084]
[1764508634848,0.002,3033.5,3033.4,4.23073084]
[1764508635674,0.002,3033.5,3033.4,4.26369714]
[1764508635853,0.002,3033.5,3033.4,5.01984066]
[1764508636851,0.002,3033.5,3033.4,3.80859714]
[1764508637487,0.002,3033.5,3033.4,4.26369714]
[1764508642883,0.002,3033.5,3033.4,4.23073084]
[1764508643070,0.002,3033.5,3033.4,5.31518852]
[1764508643272,0.002,3033.5,3033.4,5.10518852]
[1764508644193,0.002,3033.5,3033.4,3.77563084]
[1764508644395,0.002,3033.5,3033.4,3.80859714]
[1764508644575,0.002,3033.5,3033.4,4.68540382]
[1764508645487,0.002,3033.5,3033.4,5.18530382]
[1764508646083,0.002,3033.5,3033.4,4.30849714]
[1764508646294,0.002,3033.5,3033.4,3.80859714]
[1764508647563,0.002,3033.5,3033.4,0.5119663]
[1764508647986,0.002,3033.5,3033.4,3.80859714]
[1764508648207,0.4631,3033.5,3033.4,0.87887214]
[1764508648368,1.0483,3033.5,3033.4,0.87887214]
[1764508649078,1.0483,3033.5,3033.4,4.17550298]
[1764508649274,0.002,3033.5,3033.4,4.63330298]
[1764508649478,0.002,3033.5,3033.4,4.17550298]
[1764508649698,0.002,3033.5,3033.4,4.63330298]
[1764508649996,0.4631,3033.5,3033.4,0.87887214]
[1764508650669,0.9483,3033.5,3033.4,0.87887214]
[1764508650870,0.4631,3033.5,3033.4,0.001]
[1764508653103,0.45977,3033.5,3033.4,0.001]
[1764508653898,0.94497,3033.5,3033.4,0.001]
[1764508655898,4.78663329,3033.5,3033.4,0.001]
[1764508657678,5.19213729,3033.5,3033.4,0.001]
[1764508657908,5.32424968,3033.5,3033.4,0.001]
[1764508658418,5.94984379,3033.5,3033.4,0.001]
[1764508658583,6.04984379,3033.5,3033.4,0.001]
[1764508660093,9.52984379,3033.5,3033.4,0.001]
[1764508660393,6.04984379,3033.5,3033.4,0.001]
[1764508664218,6.14984379,3033.5,3033.4,0.001]
[1764508664788,6.04984379,3033.5,3033.4,0.001]
[1764508667326,6.05184379,3033.5,3033.4,0.001]
[1764508667484,6.26184379,3033.5,3033.4,0.001]
[1764508670129,9.74184379,3033.5,3033.4,0.001]
[1764508670317,6.26184379,3033.5,3033.4,0.001]
[1764508670990,6.36184379,3033.5,3033.4,0.001]
[1764508674291,4.61109811,3033.4,3033.2,0.001]
[1764508674497,4.81109811,3033.2,3033.1,0.001]
[1764508674722,5.25759811,3033.2,3033.1,0.001]
[1764508674910,5.75499811,3033.2,3033.1,0.001]
[1764508675240,5.88716157,3033.2,3033.1,0.001]
[1764508675392,6.60726031,3033.2,3033.1,0.001]
[1764508676333,5.69851441,3033.2,3033.1,0.001]
[1764508676846,5.49851441,3033.2,3033.1,0.001]
[1764508677069,6.63310852,3033.2,3033.1,0.001]
[1764508678044,6.12760452,3033.2,3033.1,0.001]
[1764508679651,6.53310852,3033.2,3033.1,0.001]
[1764508680636,5.38020852,3033.2,3033.1,0.4951]
[1764508680833,4.33144232,3033.2,3033.1,0.4951]
[1764508681034,4.73694632,3033.2,3033.1,0.4951]
[1764508682050,3.60584821,3033.2,3033.1,0.6632]
[1764508682250,3.60584821,3033.2,3033.1,0.001]
[1764508683321,5.58470961,3033.2,3033.1,0.001]
[1764508683521,4.70160961,3033.2,3033.1,0.001]
[1764508684841,5.81683858,3033.2,3033.1,0.001]
[1764508686550,4.70160961,3033.2,3033.1,0.4951]
[1764508686739,4.01135221,3033.2,3033.1,0.4951]
[1764508688764,4.49705221,3033.2,3033.1,0.001]
[1764508689361,4.99445221,3033.2,3033.1,0.001]
[1764508690269,4.01135221,3033.2,3033.1,0.4951]
[1764508690962,0.714504,3033.2,3033.1,0.4951]
[1764508691164,4.01135221,3033.2,3033.1,0.4951]
[1764508692568,0.714504,3033.2,3033.1,0.6632]
[1764508692960,0.309,3033.2,3033.1,1.1359]
[1764508694559,1.39827169,3033.9,3033.4,0.1904]
[1764508694794,0.1842,3035.6,3033.9,0.405504]
[1764508694957,0.99395756,3035.7,3035.2,0.1884]
[1764508695157,0.1,3035.3,3035.2,0.1884]
[1764508695575,0.1,3035.4,3035.2,0.3768]
[1764508695782,0.21,3035.5,3035.4,0.1884]
[1764508696197,0.21,3035.5,3035.4,0.5868]
[1764508696404,0.002,3035.7,3035.6,0.72559411]
[1764508696697,0.002,3035.7,3035.6,1.89251422]
[1764508697597,0.212,3036.2,3035.6,2.10961822]
[1764508697889,0.212,3036.2,3036.0,0.1884]
[1764508697890,0.002,3036.2,3036.0,0.1884]
[1764508698091,0.002,3036.2,3036.0,0.3768]
[1764508698462,0.002,3036.2,3036.0,3.67060764]
[1764508698658,0.002,3036.2,3036.0,1.07325705]
[1764508698868,0.002,3036.2,3036.0,0.3768]
[1764508699192,0.002,3036.2,3036.0,0.1884]
[1764508699392,0.002,3036.2,3035.4,0.21]
[1764508699393,0.102,3036.2,3035.4,1.12399411]
[1764508699595,0.1,3035.9,3035.4,1.12399411]
[1764508699895,0.1,3035.6,3035.0,0.1884]
[1764508700095,0.1,3035.6,3035.3,0.13199468]
[1764508700297,0.31,3035.8,3035.5,0.1884]
[1764508700467,0.31,3035.8,3034.8,0.1884]
[1764508700468,0.4783,3035.6,3034.8,0.1884]
[1764508700669,0.1,3035.5,3034.9,0.21]
[1764508701179,0.1,3035.2,3034.9,0.21]
[1764508701374,0.21,3035.1,3034.7,0.1884]
[1764508701589,0.21,3035.1,3034.8,0.72559411]
[1764508701788,0.21,3035.1,3035.0,0.1884]
[1764508705689,0.21,3035.1,3035.0,0.3768]
[1764508706003,0.21,3035.1,3035.0,3.67169291]
[1764508706304,0.21,3035.1,3035.0,0.74396929]
[1764508706508,0.21,3035.1,3035.0,4.0388622]
[1764508707297,0.21,3035.1,3035.0,4.76445631]
[1764508707485,0.21,3035.5,3035.0,4.76445631]
[1764508707809,0.21,3035.5,3035.4,0.1884]
[1764508708517,0.21,3035.5,3035.4,0.3768]
[1764508709391,0.21,3035.5,3035.4,0.74393629]
[1764508709582,0.21,3035.5,3035.4,3.84999501]
[1764508709782,0.21,3035.5,3035.4,0.74393629]
[1764508709983,0.21,3035.5,3035.4,3.67125872]
[1764508710380,0.102,3036.1,3035.4,6.96571744]
[1764508710580,0.102,3036.1,3036.0,0.1884]
[1764508710809,0.312,3036.1,3036.0,0.1884]
[1764508711211,0.6939,3036.1,3035.3,3.29447624]
[1764508711512,4.47980749,3036.1,3035.4,0.65890451]
[1764508711709,0.4922,3036.0,3034.9,0.1884]
[1764508711911,0.1,3035.7,3034.9,0.1884]
[1764508712100,0.21,3035.6,3034.9,0.1884]
[1764508712710,0.21,3035.6,3035.1,0.72559411]
[1764508713384,0.21,3035.6,3035.0,0.72559411]
[1764508713587,0.1,3035.5,3035.0,1.14648992]
[1764508714533,0.1,3035.2,3035.0,1.14648992]
[1764508714738,0.21,3035.6,3035.0,4.39127962]
[1764508714949,0.21,3035.6,3035.1,0.1886]
[1764508715328,0.31,3035.6,3035.1,0.1886]
[1764508716027,0.31,3035.6,3035.1,0.41014784]
[1764508716212,0.31,3035.6,3035.2,0.69999328]
[1764508717140,0.31,3035.6,3035.2,3.99460003]
[1764508717312,3.97764263,3035.9,3035.2,3.99460003]
[1764508717313,0.21,3035.5,3035.2,3.99460003]
[1764508717720,0.21,3035.5,3035.4,0.1886]
[1764508718670,0.21,3035.5,3035.2,3.99466514]
[1764508719927,0.002,3036.8,3036.4,0.1806]
[1764508720126,15.68286609,3037.0,3036.9,0.586104]
[1764508720387,15.68286609,3037.0,3036.9,0.766704]
[1764508721316,0.21,3038.2,3036.9,0.3612]
[1764508721558,0.21,3038.2,3037.3,4.37919196]
[1764508721736,0.21,3038.2,3037.3,4.55979196]
[1764508722129,3.29079641,3038.8,3037.3,4.37919196]
[1764508722333,0.4922,3038.7,3037.4,1.31169811]
[1764508722535,0.1,3038.5,3037.5,0.1806]
[1764508722731,0.21,3038.8,3037.5,0.1806]
[1764508722958,0.1,3038.5,3037.5,0.1806]
[1764508723358,0.21,3038.8,3037.5,0.1806]
[1764508723860,0.21,3038.8,3037.7,0.72559411]
[1764508724065,0.1,3038.6,3037.7,0.72559411]
[1764508724276,0.4922,3038.7,3037.7,0.72559411]
[1764508724455,0.4922,3038.7,3037.5,3.4727767]
[1764508724456,0.1,3038.3,3037.5,0.90619411]
[1764508724659,0.21,3038.2,3037.4,3.29218455]
[1764508724837,0.21,3038.2,3037.3,0.1806]
[1764508725037,0.4922,3038.1,3037.1,3.47313557]
[1764508725381,0.1,3037.7,3037.1,3.47313557]
[1764508725741,0.4015,3037.6,3037.1,0.1806]
[1764508726051,0.4015,3037.6,3036.2,0.87532791]
[1764508726052,0.1,3037.4,3036.9,0.1806]
[1764508726442,0.21,3037.3,3036.9,0.1806]
[1764508726843,0.21,3037.3,3037.2,0.1806]
[1764508727146,0.21,3037.3,3036.9,0.1806]
[1764508727647,0.21,3037.3,3036.9,0.3612]
[1764508727848,0.21,3037.6,3037.2,0.1806]
[1764508728253,0.21,3037.6,3037.5,0.1806]
[1764508729257,3.78299079,3038.8,3037.5,0.1806]
[1764508729446,0.405504,3039.3,3037.1,0.72559411]
[1764508729447,0.72559411,3038.6,3037.1,0.72559411]
[1764508729846,0.1,3038.0,3037.2,6.5850125]
[1764508730185,0.211,3037.9,3037.2,6.5850125]
[1764508730342,0.4025,3037.9,3037.2,6.5850125]
[1764508730540,0.211,3037.9,3037.2,6.5850125]
[1764508730780,0.211,3037.9,3037.2,6.7656125]
[1764508730982,0.211,3037.9,3037.8,0.1806]
[1764508731486,0.211,3037.9,3037.1,3.1]
[1764508731487,1.3766,3037.9,3037.0,3.29269556]
[1764508731771,1.3766,3037.9,3037.2,0.72559411]
[1764508731974,0.211,3037.8,3037.2,0.72559411]
[1764508732547,0.1,3037.7,3037.1,3.29259959]
[1764508732948,0.1,3037.7,3037.1,6.58521425]
[1764508733184,0.211,3037.8,3037.1,6.58521425]
[1764508733481,0.211,3037.8,3037.2,0.03292506]
[1764508733703,0.1915,3037.9,3037.2,0.03292506]
[1764508733849,3.77900457,3038.6,3037.8,0.1806]
[1764508734049,0.1,3038.4,3037.8,0.1806]
[1764508734471,0.488,3038.5,3037.8,0.1806]
[1764508734678,0.211,3038.4,3037.8,0.1806]
[1764508735046,0.1,3038.2,3037.4,0.72559411]
[1764508735250,0.002,3037.7,3037.4,0.72559411]
[1764508735450,0.213,3037.7,3037.4,0.72559411]
[1764508735884,0.002,3037.7,3037.6,0.90619411]
[1764508736046,0.002,3037.7,3037.6,1.34461883]
[1764508736246,0.002,3037.7,3037.6,1.49229811]
[1764508736682,0.002,3037.7,3037.6,1.52521883]
[1764508737392,0.002,3037.7,3037.6,4.62521883]
[1764508737789,0.002,3037.7,3037.6,4.59229811]
[1764508737979,0.002,3037.7,3037.6,7.91729151]
[1764508738182,0.002,3037.7,3037.6,7.88437079]
[1764508738493,0.002,3038.1,3037.6,7.88437079]
[1764508738494,0.002,3038.1,3037.7,0.405504]
[1764508738799,0.002,3038.1,3038.0,0.1806]
[1764508739087,0.002,3038.1,3038.0,0.586104]
[1764508739285,0.002,3038.1,3038.0,0.766704]
[1764508739987,0.002,3038.1,3038.0,4.19783334]
[1764508740582,0.002,3038.1,3038.0,4.23074973]
[1764508740890,0.002,3038.1,3038.0,4.19783334]
[1764508741473,0.002,3038.1,3038.0,4.41134973]
[1764508742363,0.002,3038.1,3038.0,4.26134973]
[1764508742571,0.002,3038.1,3038.0,4.22843334]
[1764508742765,0.002,3038.1,3038.0,4.04783334]
[1764508742975,0.002,3038.1,3038.0,4.07843334]
[1764508743491,0.002,3038.1,3038.0,4.08074973]
[1764508743665,0.002,3038.1,3038.0,4.04783334]
[1764508744271,0.002,3038.1,3038.0,4.07843334]
[1764508744468,0.002,3038.1,3038.0,4.01723334]
[1764508744785,0.9759,3038.1,3038.0,0.72559411]
[1764508745889,0.1,3037.8,3037.0,9.87816924]
[1764508746092,0.311,3037.8,3037.1,0.03292614]
[1764508746266,0.211,3037.8,3037.1,0.03292614]
[1764508746667,0.211,3037.8,3037.1,0.75852025]
[1764508747165,0.211,3037.8,3037.1,0.78912025]
[1764508747574,0.211,3037.8,3037.1,0.75852025]
[1764508748087,0.211,3037.8,3037.3,0.72559411]
[1764508748289,0.488,3037.7,3037.4,0.03292289]
[1764508748492,0.588,3037.7,3037.3,0.72559411]
[1764508748867,0.4859,3037.4,3037.3,0.72559411]
[1764508749191,0.4859,3037.4,3037.2,6.5850125]
[1764508749192,0.4859,3037.4,3037.2,3.29250625]
[1764508749396,0.4859,3037.3,3037.2,4.05102542]
[1764508750169,0.9739,3037.3,3037.2,0.72559411]
[1764508750579,0.9739,3037.3,3037.2,4.01810036]
[1764508751898,0.9739,3037.3,3037.2,0.72559411]
[1764508752786,0.9739,3037.3,3037.1,0.72559411]
[1764508752986,0.488,3037.6,3037.1,0.75852025]
[1764508753184,0.1,3037.5,3037.1,0.75852025]
[1764508753405,0.488,3037.4,3037.1,0.75852025]
[1764508754292,0.488,3037.4,3037.2,3.29250625]
[1764508754498,0.488,3037.4,3037.3,0.72559411]
[1764508754894,0.4859,3037.4,3037.3,0.72559411]
[1764508755873,0.6969,3037.4,3037.3,0.72559411]
[1764508756167,0.211,3037.4,3037.3,0.72559411]
[1764508756368,0.211,3037.4,3037.3,4.04859196]
[1764508756799,0.211,3037.4,3037.3,4.08151593]
[1764508757005,0.211,3037.4,3037.3,4.05091593]
[1764508759284,0.211,3037.6,3037.3,7.34331378]
[1764508759484,0.211,3037.6,3037.3,7.34098981]
[1764508760184,0.211,3037.6,3037.5,0.0306]
[1764508760383,0.002,3038.0,3037.5,4.04837517]
[1764508760582,0.002,3038.0,3037.7,0.86386179]
[1764508761112,0.002,3038.0,3037.9,0.0306]
[1764508761585,0.002,3038.0,3037.7,0.86386179]
[1764508762613,0.002,3038.0,3037.9,0.72559411]
[1764508763415,0.002,3038.0,3037.9,0.75619411]
[1764508763635,0.002,3038.0,3037.9,1.19229811]
[1764508764886,0.002,3038.0,3037.9,4.48404569]
[1764508766334,0.002,3038.0,3037.9,7.58404569]
[1764508766610,0.002,3038.0,3037.9,7.48404569]
[1764508767577,0.002,3038.0,3037.9,9.23490709]
[1764508767783,1e-08,3038.1,3038.0,0.466704]
[1764508768022,0.002,3038.4,3038.0,0.70962039]
[1764508768212,0.002,3038.4,3038.3,1.59378579]
[1764508768715,0.002,3038.4,3038.2,1.53207669]
[1764508769114,0.002,3038.4,3038.3,4.01690833]
[1764508769319,0.1977,3041.6,3038.4,11.75839311]
[1764508769522,0.1977,3041.8,3039.1,0.86709547]
[1764508769716,0.1,3040.4,3039.3,0.86709547]
[1764508769879,3.6727,3041.8,3039.3,0.86709547]
[1764508769880,0.661,3040.3,3039.3,0.86709547]
[1764508770090,0.661,3040.3,3039.1,1.1561273]
[1764508770091,0.661,3040.3,3039.1,0.86709547]
[1764508770296,0.4633,3040.2,3039.0,0.86709547]
[1764508770528,0.1,3039.9,3039.0,0.86709547]
[1764508770897,0.4633,3039.8,3039.0,0.86709547]
[1764508771097,0.4633,3039.8,3039.1,6.58089564]
[1764508771425,0.4633,3039.8,3039.2,0.72559411]
[1764508772829,0.4633,3040.5,3039.2,0.72559411]
[1764508773030,0.1977,3039.9,3039.2,0.72559411]
[1764508773216,0.0977,3039.9,3039.3,6.5804626]
[1764508773420,0.561,3039.9,3039.4,0.72559411]
[1764508774827,0.561,3039.9,3039.3,3.2902313]
[1764508775398,0.561,3039.9,3039.2,3.29033956]
[1764508775643,0.561,3039.9,3039.3,0.72559411]
[1764508775963,0.1,3039.8,3039.3,0.72559411]
[1764508776302,0.4887,3039.4,3039.3,0.72559411]
[1764508777013,0.952,3039.4,3039.0,0.72559411]
[1764508777332,0.4887,3039.3,3039.0,4.01606661]
[1764508777836,0.4887,3039.3,3039.0,7.30662271]
[1764508778039,0.4633,3039.3,3039.1,0.03290447]
[1764508778241,0.4633,3039.3,3038.7,0.72559411]
[1764508778415,0.211,3039.6,3038.7,0.72559411]
[1764508778735,0.211,3039.8,3038.7,0.72559411]
[1764508778938,0.211,3039.8,3038.8,0.60781172]
[1764508779141,0.0977,3039.9,3038.8,0.60781172]
[1764508779307,0.0977,3039.9,3038.9,0.1694]
[1764508779506,0.0977,3039.9,3039.2,0.72559411]
[1764508779737,0.0977,3039.9,3039.3,0.03290231]
[1764508780306,0.0977,3039.9,3039.2,0.72559411]
[1764508780831,0.561,3039.9,3039.2,0.72559411]
[1764508781441,0.561,3039.9,3039.4,0.72559411]
[1764508782447,0.0977,3039.9,3039.5,0.03290014]
[1764508782940,0.211,3040.1,3039.5,0.03290014]
[1764508783128,0.211,3040.5,3040.0,0.1694]
[1764508783504,0.4633,3040.8,3040.2,3.28925728]
[1764508783709,1.06924014,3040.8,3040.2,3.28925728]
[1764508784141,0.4887,3040.3,3040.2,0.72559411]
[1764508784509,0.4633,3040.7,3040.2,0.72559411]
[1764508785855,0.4633,3040.7,3040.2,4.01484594]
[1764508786047,0.4633,3040.7,3040.2,0.72559411]
[1764508786251,0.85958677,3040.7,3040.2,0.72559411]
[1764508786416,0.4887,3040.3,3040.1,0.72559411]
[1764508786614,0.4336,3040.2,3040.1,0.72559411]
[1764508787022,0.8969,3040.2,3040.1,0.72559411]
[1764508787340,0.8969,3040.2,3040.0,3.28945341]
[1764508787341,0.8969,3040.2,3040.0,0.72559411]
[1764508787519,0.4336,3040.2,3040.1,0.72559411]
[1764508787725,0.952,3040.1,3040.0,0.72559411]
[1764508788039,3.68501593,3040.7,3040.0,0.72559411]
[1764508788040,0.4633,3040.6,3040.0,0.72559411]
[1764508788241,0.211,3040.8,3040.5,0.2694]
[1764508788553,0.4087,3041.0,3040.6,0.2694]
[1764508788710,0.002,3040.7,3040.6,0.2694]
[1764508788911,0.002,3040.7,3040.1,0.405504]
[1764508789125,0.002,3040.7,3040.1,0.70779765]
[1764508789518,0.002,3040.7,3040.3,0.72559411]
[1764508789923,0.002,3040.7,3040.6,0.2694]
[1764508790141,0.4653,3040.7,3040.3,0.72559411]
[1764508790512,0.4887,3040.4,3040.2,0.72559411]
[1764508790852,0.002,3040.7,3040.2,0.72559411]
[1764508791020,0.002,3040.7,3040.2,0.75848668]
[1764508791341,0.4653,3040.7,3040.2,0.75848668]
[1764508791548,0.4653,3040.7,3040.2,7.30403826]
[1764508792053,0.002,3040.7,3040.6,0.2694]
[1764508792411,0.002,3040.7,3040.3,0.86499108]
[1764508792618,0.002,3040.7,3040.2,7.30403826]
[1764508792838,0.002,3040.7,3040.2,7.25403826]
[1764508793243,0.002,3040.7,3040.6,0.2694]
[1764508793750,0.002,3040.7,3040.2,7.25403826]
[1764508793923,0.4674,3040.7,3040.2,7.25403826]
[1764508794259,0.002,3040.7,3040.2,7.25403826]
[1764508794722,0.002,3040.7,3040.3,0.03289149]
[1764508795362,0.002,3040.7,3040.3,0.30229149]
[1764508795555,0.002,3040.7,3040.6,0.2694]
[1764508795850,0.002,3040.7,3040.6,4.58610692]
[1764508796420,0.002,3040.7,3040.6,4.55321868]
[1764508797429,0.002,3040.7,3040.6,5.451098]
[1764508797633,0.002,3040.7,3040.6,4.28381868]
[1764508797950,0.002,3040.7,3040.6,0.72559411]
[1764508798265,0.002,3040.7,3040.6,0.03288824]
[1764508798434,0.002,3040.7,3040.6,0.99499411]
[1764508798625,0.002,3040.7,3040.6,0.72559411]
[1764508798823,0.002,3040.7,3040.6,0.99499411]
[1764508799361,0.002,3040.7,3040.6,0.72559411]
[1764508799582,0.4674,3040.7,3040.6,0.72559411]
[1764508799722,0.002,3040.7,3040.6,4.01441868]
[1764508799917,0.4674,3040.7,3040.3,3.28914909]
[1764508800119,0.002,3040.7,3040.4,0.0328904]
[1764508800319,0.002,3040.7,3040.4,0.75848451]
[1764508800864,0.002,3040.7,3040.6,0.2694]
[1764508801026,0.002,3040.7,3040.6,0.57168824]
[1764508801374,0.002,3040.7,3040.6,2.1004313]
[1764508801654,0.1977,3042.8,3040.9,1.13109811]
[1764508801857,0.1977,3042.8,3041.8,0.2674]
[1764508802226,0.4609,3042.7,3041.6,0.098]
[1764508802558,0.63443714,3042.4,3041.6,0.098]
[1764508802754,0.17353714,3042.4,3042.3,0.3368]
[1764508802954,0.17353714,3042.4,3042.3,0.0694]
[1764508803329,0.17353714,3042.4,3041.7,1.34348741]
[1764508803548,0.17353714,3042.4,3041.8,0.2674]
[1764508803723,0.17353714,3042.4,3041.9,0.72559411]
[1764508804419,0.17353714,3042.4,3041.3,0.86508741]
[1764508804420,0.4654,3042.0,3041.3,0.86508741]
[1764508804661,0.63443714,3042.4,3041.5,0.72559411]
[1764508805158,0.17353714,3042.4,3041.4,6.57591898]
[1764508805360,0.17353714,3042.4,3041.5,0.30027851]
[1764508805580,0.17353714,3042.4,3042.3,0.3654]
[1764508805724,0.17353714,3042.4,3042.3,4.37798092]
[1764508805923,0.17353714,3042.4,3042.3,4.64538092]
[1764508806339,0.17353714,3042.4,3042.3,1.09099411]
[1764508806567,0.17353714,3042.4,3042.3,4.37798092]
[1764508806927,0.17353714,3042.4,3042.3,0.72559411]
[1764508807143,0.63893714,3042.4,3042.1,0.72559411]